Cogmind - Beta 15 @@@ ROGUE MODE // 2025.05.24 @ 13:46:29 Player: opdo Result: Destroyed by Y-54 Guardian with Flak Gun Performance ------------- Evolutions (0) 0 Regions Visited (3) 600 Robots Destroyed (26) 130 Value Destroyed (497) 497 Prototype IDs (2) 40 Alien Tech Used (0) 0 Bonus (0) 0 TOTAL SCORE: 1267 Bonus ------- None Cogmind --------- Core Integrity 0/250 Matter 300/300 Energy 275/275 System Corruption 0% Temperature Cool (18) Movement Rolling (115) Ox1 Location -7/Recycling Parts ------- > --- POWER (1) -------- Deuterium Engine > --- PROPULSION (2) --- Armored Huge Wheel > --- UTILITY (2) ------ Large Storage Unit System Restoration Module > --- WEAPON (2) ------- Light Cannon Great Maul > --- INVENTORY (15) --- Light Ion Engine Light Treads Aluminum Leg Subdweller Monowheel Disposable Heat Sink High-capacity Storage Unit Advanced Targeting Computer ECM Suite Improved Propulsion Shielding Subdweller Laser Autogun Flak Cannon Flak Cannon Mining Claw Spear Peak State ------------ > --- POWER ------------ Deuterium Engine > --- PROPULSION ------- Armored Huge Wheel > --- UTILITY ---------- Large Storage Unit System Restoration Module > --- WEAPON ----------- Light Cannon Great Maul > --- INVENTORY -------- Light Ion Engine Light Treads Aluminum Leg Subdweller Monowheel Disposable Heat Sink High-capacity Storage Unit Advanced Targeting Computer ECM Suite Improved Propulsion Shielding Subdweller Laser Autogun Flak Cannon Flak Cannon Mining Claw Spear [Rating: 23] Favorites ----------- Power Ion Engine Engine Ion Engine Propulsion Aluminum Leg Treads Light Treads Leg Aluminum Leg Wheel Armored Huge Wheel Utility Large Storage Unit Device Improved Terrain Scanner Storage Large Storage Unit Protection Light Armor Plating Weapon Assault Rifle Ballistic Gun Assault Rifle Ballistic Cannon Light Cannon Launcher Grenade Launcher Impact Weapon Great Maul Slashing Weapon Mining Claw Build | -11 -10 -10 -7 ------- Run | Yrd Mat Sub Rec Slots Evolved . | . . . . Power . | . . . . Propulsion . | . . . . Utility . | . . . . Weapon . | . . . . Parts Attached 24 | 7 7 5 5 Power 4 | 1 2 . 1 Engine 4 | 1 2 . 1 Core . | . . . . Reactor . | . . . . Propulsion 8 | 2 2 3 1 Treads 2 | . . 2 . Leg 4 | 2 2 . . Wheel 2 | . . 1 1 Hover . | . . . . Flight . | . . . . Utility 5 | 2 1 1 1 Device 2 | 1 . . 1 Storage 2 | 1 1 . . Processor . | . . . . Hackware . | . . . . Protection 1 | . . 1 . Artifact . | . . . . Weapon 7 | 2 2 1 2 Energy Gun . | . . . . Energy Cannon . | . . . . Ballistic Gun 2 | 2 . . . Ballistic Cannon 2 | . . 1 1 Launcher 1 | . 1 . . Special Weapon . | . . . . Impact Weapon 1 | . . . 1 Slashing Weapon 1 | . 1 . . Piercing Weapon . | . . . . Special Melee Weapon . | . . . . Unidentified Prototypes . | . . . . Parts Lost 8 | . . 8 . Power 1 | . . 1 . Propulsion 2 | . . 2 . Utility 2 | . . 2 . Weapon 3 | . . 3 . Highest Loss Streak 4 | . . 4 . To Critical Strikes . | . . . . Average Backups 8 | 2 7 8 9 Power . | . 1 1 1 Propulsion 2 | 1 2 2 2 Utility 1 | . . 1 2 Weapon 3 | . 3 3 3 Tool/Special . | . . . . Unused Backups 11 | . 2 . 9 Power 1 | . . . 1 Propulsion 1 | . 1 . . Utility 5 | . . . 5 Weapon 4 | . 1 . 3 Tool/Special . | . . . . Average Slot Usage (%) 88 | . 100 93 70 Engine 9 | . 14 9 4 Treads 2 | . . 7 2 Leg 16 | . 28 19 . Wheel 4 | . . . 14 Device 11 | . 14 9 10 Storage 14 | . 14 14 14 Ballistic Gun 17 | . 27 22 . Ballistic Cannon 7 | . . 3 20 Impact Weapon 1 | . . . 3 Peak Build Rating 23 | 9 9 10 23 Average Rating 10 | 5 9 8 15 On Entrance 5 | . 9 9 5 Naked Turns . | . . . . Heaviest Build 37 | 12 30 29 37 Greatest Support 40 | 20 20 40 28 Greatest Overweight (x) 1 | . 1 1 1 Average Overweight (x) . | . . . . Largest Inventory Capacity 15 | 8 15 15 15 Average Capacity 12 | 7 8 15 15 Most Carried 15 | 4 8 10 15 Average Carried 8 | 2 7 8 9 Final Capacity 15 | 8 15 15 15 Final Carried 15 | 4 8 6 15 Class Distribution -------------------- 100% | Mutant Dominant Class ---------------- Mutant | -10/Materials Mutant | -10/Subcaves Mutant | -7/Recycling Resources | -11 -10 -10 -7 ----------- Run | Yrd Mat Sub Rec Matter Collected 828 | 151 270 148 259 Remotely . | . . . . Salvage Created 618 | 29 372 153 64 Parts 47 | 4 31 12 . Haulers Intercepted 2 | . 2 . . Recyclers Shooed 2 | . 2 . . Parts Field Recycled . | . . . . Retrieved Matter . | . . . . Parts Self-Destructed 10 | . . 10 . Prevented . | . . . . Kills | -11 -10 -10 -7 ------- Run | Yrd Mat Sub Rec Combat Hostiles Destroyed 18 | . 11 7 . Guns 16 | . 10 6 . AOE 2 | . 1 1 . Classes Destroyed 9 | 1 5 2 1 Worker 1 | . 1 . . Tunneler 1 | 1 . . . Hauler 2 | . 2 . . Recycler 1 | . . . 1 Turret 2 | . . 2 . Watcher 1 | . 1 . . Swarmer 10 | . 6 4 . Grunt 5 | . 5 . . Subdweller 3 | . . 3 . Best Kill Streak 4 | 1 3 4 1 Combat Bots Only 4 | . 3 4 . Max Kills in Single Turn 2 | 1 2 2 1 Gunslinging 1 | . 1 1 . Exploded 1 | . 1 1 . Melee . | . . . . Uniques/NPCs Destroyed . | . . . . Combat | -11 -10 -10 -7 -------- Run | Yrd Mat Sub Rec Hostile Shots Fired 209 | . 41 141 27 Missed 83 | . 14 59 10 Hits 126 | . 27 82 17 Projectile 126 | . 27 82 17 AOE 3 | . . 3 . Damage Taken 1398 | . 273 1007 118 Core 252 | . 63 149 40 Absorbed by Shields . | . . . . Core Remaining (%) 100 | 100 . . . Volleys Fired 73 | 4 40 29 . Largest 2 | 2 2 2 . Hottest 50 | 40 50 50 . Shots Fired 146 | 8 80 57 1 Gun 125 | 8 78 39 . Cannon 14 | . . 13 1 Launcher 7 | . 2 5 . Special . | . . . . Kinetic 139 | 8 78 52 1 Thermal . | . . . . Explosive 7 | . 2 5 . Electromagnetic . | . . . . Robot Hit Streak 18 | 3 9 18 . Robot Miss Streak 4 | 1 4 3 . Penetration Max . | . . . . Secondary Targets 3 | . 1 2 . Max Gunslinging Chain 1 | . 1 1 . Shots Hit Robots 104 | 5 51 46 2 Core Hits 49 | 3 25 20 1 Critical Kills . | . . . . Critical Parts Destroyed 1 | . . . 1 Critical Strikes 1 | . . . 1 Smash 1 | . . . 1 Melee Attacks 10 | . 3 3 4 Impact 4 | . . . 4 Slashing 6 | . 3 3 . Piercing . | . . . . Sneak Attacks 1 | . . . 1 Combat Hostiles . | . . . . Follow-up Attacks . | . . . . Damage Inflicted 1619 | 64 660 735 160 Guns 913 | 64 526 323 . Cannons 187 | . . 187 . Explosions 334 | . 109 225 . Melee 139 | . . . 139 Ramming 46 | . 25 . 21 Kinetic 1100 | 64 526 510 . Thermal . | . . . . Explosive 334 | . 109 225 . Electromagnetic . | . . . . Impact 139 | . . . 139 Slashing . | . . . . Piercing . | . . . . Highest Corruption 1 | . 1 1 1 Average Corruption 1 | . 1 1 1 Corruption Purged 1 | . . . 1 Corruption Blocked . | . . . . Effects 7 | . 3 3 1 Message Errors 4 | . 3 1 . Matter Fused 1 | . . 1 . Energy Discharges 1 | . . 1 . Misfires 1 | . . . 1 Overload Shots . | . . . . Overflow Damage 110 | . . . 110 Projectiles . | . . . . Explosions . | . . . . Melee 110 | . . . 110 Knockbacks 4 | . . 4 . Impact . | . . . . Kinetic 4 | . . 4 . Secondary . | . . . . Self-Inflicted Damage 9 | . . . 9 Shots . | . . . . Rammed 3 | . . . 3 Targets Rammed 8 | . 5 . 3 Kicked 5 | . 5 . . Crushed . | . . . . Highest Temperature 12 | . 12 . . Average Temperature 6 | . 6 . . Received Heat Transfer 489 | . 111 348 30 Siege Activations . | . . . . Martial Activations . | . . . . Shielding Activations . | . . . . Robots Disrupted . | . . . . Combat Hostiles . | . . . . Robots Corrupted . | . . . . Combat Hostiles . | . . . . Parts Fried 1 | . . . 1 Impact Corruptions 2 | . . . 2 Robots Melted . | . . . . Combat Hostiles . | . . . . Parts Melted 1 | . . 1 . Heat Transferred . | . . . . Parts Sabotaged . | . . . . Parts Stolen . | . . . . Parts Stripped . | . . . . Power Chain Reactions . | . . . . Alert | -11 -10 -10 -7 ------- Run | Yrd Mat Sub Rec Maximum Alert Level . | . . . . Low Security (%) 100 | 100 100 . 100 Level 1 . | . . . . Level 2 . | . . . . Level 3 . | . . . . Level 4 . | . . . . Level 5 . | . . . . High Security . | . . . . Max Security . | . . . . Peak Influence 130 | . 130 . 43 Initial 23 | . . . 23 Average 37 | . 63 . 6 Influence Increases 610 | 5 328 180 97 Destroy 0b10 Robot/C 340 | . 220 120 . Destroy 0b10 Robot/NC 30 | 5 20 . 5 Destroy Leader 56 | . 56 . . Successful Hack 21 | . 21 . . Select Force Hacks 90 | . . . 90 Destroy Structure 13 | . 11 . 2 Lose Combat Pursuer 60 | . . 60 . Influence Decreases 610 | 5 328 131 146 Entered New Map 26 | . . . 26 Time Decay 519 | 5 328 66 120 Lost Part 65 | . . 65 . Squads Dispatched 2 | . 2 . . Investigation . | . . . . Extermination . | . . . . Reinforcement 2 | . 2 . . Assault . | . . . . Garrison . | . . . . Intercept . | . . . . Searches Triggered . | . . . . Construction Impeded . | . . . . Haulers Reinforced . | . . . . Active Scanning Responses . | . . . . Cargo Convoy Interrupts . | . . . . Stealth | -11 -10 -10 -7 --------- Run | Yrd Mat Sub Rec Distress Signals . | . . . . Communications Jammed . | . . . . Distress Signals . | . . . . Times Spotted 28 | . 15 12 1 Peak Tracking Total 6 | . 3 6 1 Tactical Retreats 2 | . . 2 . Traps | -11 -10 -10 -7 ------- Run | Yrd Mat Sub Rec Traps Triggered 1 | . 1 . . Indirectly . | . . . . Trap Hack Attempts . | . . . . Triggered . | . . . . Disarmed . | . . . . Reprogrammed . | . . . . Reused . | . . . . Traps Extracted . | . . . . Installed . | . . . . Triggered . | . . . . Machines | -11 -10 -10 -7 ---------- Run | Yrd Mat Sub Rec Machines Disabled 2 | . . 2 . Max in Single Turn 1 | . . 1 . Machines Repaired . | . . . . Machines Dismantled . | . . . . Machines Sabotaged . | . . . . Overloaded Fab Kills . | . . . . Hacking | -11 -10 -10 -7 --------- Run | Yrd Mat Sub Rec Machines Accessed 10 | . 6 . 4 Terminals 7 | . 6 . 1 Fabricators . | . . . . Repair Stations . | . . . . Recycling Units 3 | . . . 3 Scanalyzers . | . . . . Garrison Access . | . . . . Total Hacks 35 | . 20 . 15 Successful 20 | . 11 . 9 Failed 15 | . 9 . 6 Catastrophic 1 | . 1 . . Database Lockouts . | . . . . Manual 25 | . 15 . 10 Terminals 26 | . 20 . 6 Fabricators . | . . . . Repair Stations . | . . . . Recycling Units 9 | . . . 9 Scanalyzers . | . . . . Garrison Access . | . . . . Terminal Hacks 5 | . 4 . 1 Robot Analysis 1 | . 1 . . Prototype ID Bank 1 | . 1 . . Terminal Index 2 | . 1 . 1 Locate Traps 1 | . 1 . . Fabricator Hacks . | . . . . Repair Station Hacks . | . . . . Recycling Unit Hacks 4 | . . . 4 Report Inventory 3 | . . . 3 Retrieve Matter 1 | . . . 1 Scanalyzer . | . . . . Garrison Access Hacks . | . . . . Unauthorized Hacks 11 | . 7 . 4 Terminals 8 | . 7 . 1 Botnet 2 | . 2 . . Skim 6 | . 5 . 1 Fabricators . | . . . . Repair Stations . | . . . . Recycling Units 3 | . . . 3 Tunnel 3 | . . . 3 Scanalyzers . | . . . . Garrison Access . | . . . . Data Cores Recovered . | . . . . Used . | . . . . Hacking Detections 7 | . 5 . 2 Full Trace Events . | . . . . Feedback Events . | . . . . Feedback Blocked . | . . . . Robot Schematics Acquired . | . . . . Robots Built . | . . . . Authchips . | . . . . Time . | . . . . Total Robot Build Rating . | . . . . Part Schematics Acquired . | . . . . Parts Built . | . . . . Authchips . | . . . . Time . | . . . . Total Part Build Rating . | . . . . Parts Repaired . | . . . . Time . | . . . . Parts Recycled . | . . . . Recycled Matter . | . . . . Retrieved Matter . | . . . . Retrieved Components . | . . . . Parts Scanalyzed . | . . . . Part Schematics Acquired . | . . . . Parts Damaged . | . . . . Bothacking | -11 -10 -10 -7 ------------ Run | Yrd Mat Sub Rec Used RIF Installer . | . . . . Robots Hacked . | . . . . Non-combat . | . . . . Combat . | . . . . Robot Hacks Applied . | . . . . Relay Couplers Released . | . . . . Fabnet Peak Effective % . | . . . . Robots Rewired . | . . . . Allies Hacked . | . . . . Hacks Repelled . | . . . . Allies | -11 -10 -10 -7 -------- Run | Yrd Mat Sub Rec Total Allies . | . . . . Largest Group . | . . . . Highest-Rated Group . | . . . . Highest-Rated Ally . | . . . . Total Orders . | . . . . Ally Attacks . | . . . . Total Damage . | . . . . Kills . | . . . . Allies Corrupted . | . . . . Allies Melted . | . . . . Intel | -11 -10 -10 -7 ------- Run | Yrd Mat Sub Rec Active Infowar (turns) 1127 | 5 829 293 . Terrain 1127 | 5 829 293 . Robot Analysis Total 1 | . 1 . . Derelict Logs Recovered 1 | . . 1 . Drone Launches . | . . . . Drone Recoveries . | . . . . Exploration | -11 -10 -10 -7 ------------- Run | Yrd Mat Sub Rec Turns Passed 1950 | 71 829 429 621 Spaces Moved 1302 | 42 535 177 548 Core 6 | 6 . . . Treads 43 | . . 43 . Legs 699 | 36 535 128 . Wheels 554 | . . 6 548 Hover . | . . . . Flight . | . . . . Fastest Speed 50 | 50 120 120 100 Average Speed 125 | 110 126 180 107 Slowest Speed 190 | 120 190 190 120 Overloaded Moves . | . . . . Propulsion Burnouts . | . . . . Robots Hopped . | . . . . Potential Cave-ins . | . . . . Cave-ins Triggered . | . . . . Exploration Rate (%) 46 | 3 90 15 77 Regions Visited 3 Branch Regions 2 Pre-discovered Areas 3 | . . . 3 Known Exits Taken 2 | . 1 1 . Unknown Exits Taken 1 | 1 . . . Scrap Searched . | . . . . Spaces Dug 2 | . . . 2 Terrain Destroyed 49 | . 19 28 2 Melee 2 | . . . 2 Projectile . | . . . . AOE 47 | . 19 28 . Terrain Rammed . | . . . . Walls Destroyed . | . . . . Machines Disabled . | . . . . Actions | -11 -10 -10 -7 --------- Run | Yrd Mat Sub Rec Total 1465 | 56 613 224 572 Wait 13 | . 10 3 . Move 1299 | 41 534 176 548 Hop . | . . . . Pick Up 22 | 4 6 3 9 Fast Attach 10 | 7 . . 3 Attach 6 | . . 5 1 Detach 2 | . . . 2 Swap 14 | . 8 5 1 Drop 8 | . 7 . 1 Fire 73 | 4 40 29 . Melee 10 | . 3 3 4 Ram 3 | . . . 3 Kick 5 | . 5 . . Crush . | . . . . Escape Stasis . | . . . . Rewire . | . . . . Trap . | . . . . Miscellaneous . | . . . . Route ------- -11/Scrapyard -10/Materials (discovered 5 exits: *Mat x3 / *Min / *Sub) -10/Subcaves (discovered 2 exits: Mat / *Rec) -7/Recycling (discovered 1 exit: [*Fac]) History --------- Turn | Location | Event 7 | -11/Scrapyard | Discovered new exit (range 15) 72 | -11/Scrapyard | Entered Materials 206 | -10/Materials | Discovered new exit (range 6) 303 | -10/Materials | Discovered new exit (range 8) 316 | -10/Materials | Build established: Mutant 438 | -10/Materials | Discovered new exit (range 5) 495 | -10/Materials | Learned 2 Mines zone layouts 546 | -10/Materials | Identified exit to Materials 546 | -10/Materials | Identified exit to Subcaves 585 | -10/Materials | Identified exit to Mines 614 | -10/Materials | Learned location of 2 exits from Mines 632 | -10/Materials | Learned location of 2 exits from Subcaves 638 | -10/Materials | Loaded intel: 8 trap records 678 | -10/Materials | Learned location of 1 exit from Storage 710 | -10/Materials | Learned 4 Subcaves zone layouts 901 | -10/Materials | Entered Subcaves 902 | -10/Subcaves | Identified exit to Materials 902 | -10/Subcaves | Identified exit to Recycling 910 | -10/Subcaves | Learned Materials stockpile data 1214 | -10/Subcaves | Core integrity fell below 50% 1245 | -10/Subcaves | Lost 4 parts (1p1n1u1w) 1322 | -10/Subcaves | Core integrity fell below 20% 1330 | -10/Subcaves | Entered Recycling 1352 | -7/Recycling | Lost 3 parts (1n1u1w) 1515 | -7/Recycling | Discovered new exit (range 4) 1951 | -7/Recycling | Destroyed by Y-54 Guardian with Flak Gun Last Messages --------------- 01791_ Lgt. Cannon broken. 01791_ Destabilizing: Short circuit. 01818_ Sneak attack on R-06 Scavenger. 01818_ R-06 Scavenger suffers critical hit (Smash). 01818_ Destroyed Lgt. Ion Engine. 01818_ Destroyed Com. Wheel. 01818_ R-06 Scavenger system corrupted by crushing effect. 01818_ Tractor Beam fried. 01818_ R-06 Scavenger destroyed. 01821_ Acquired 10 matter. 01862_ U-05 Engineer builds a Wall. 01877_ Acquired Autogun. 01927_ Acquired Flak Cannon. 01930_ Dropped Broken Lgt. Cannon. 01930_ Acquired Flak Cannon. 01943_ Y-54 Guardian springs to life. 01948_ R-06 Scavenger collects Broken Lgt. Cannon. Map ----- +----------------------------------------------------+ | ????????????# ## ###+#######??????????? | | ????????????# ## # #??????????? | | ????????????####+##### # #??????????? | | ??????????????# # #??????????? | | ??????????????# # +??????????? | | ??????????????# # #??????????? | | ??????????????## # ! /! #??????????? | | ???????????????# # [ % #??????????? | | ???????????????# # /%! #??????????? | | ???????????????# #####+#####??????????? | | ???????????????# #????????????????????? | | ???????????????# ##### #??????????????? | | ???????????????# #??????????????? | | ???????????????# r #??????????????? | | ?????########### """ """ #??????????????? | | ?????# # """ """ #????????????### | | ?????# # """ """ #??????????? | | ?????#] * # #??????????? | | ?????# + r ????????? | | ?????#! r # ###???????????????? | | ?????# ! ] # #?????????????????? | | ?????# ![ ; #?????????????????? | | ?????# % # #?????????????????? | | ?????########### #?????????????????? | | ???????????????# #?????????????????? | | ???????????????# @######?????????????????? | | ???????????????# Y#??????????????????????? | | ???????????????# #?????????????????????? | | ???????????????# ##?????????????????????? | | ???????????????# #??????????????????????? | | ???????????????# #???#######????????????? | | ???????????????# #???# ############## | | ???????????????# #???# | | ???????????????# #???# | | ???????????????#+##+##???# | | ?????????????????????????# ####### | | ?????????????????????????#######?????# | | ?????????????????????????????????????# | | ?????????????????????????????????????# | | ?????????????????????????????????????######## | | ????????????????????????????????????????????? | | ????????????????????????????????????????????? | | | | | | | | | | | | | | | | | +----------------------------------------------------+ Best States ------------- Heat Dissipation 25 Energy Generation 14 Energy Capacity 275 Matter Stores 300 Matter Capacity 300 Sight Range 16 Terrain Scan Range 16 Terrain Scan Density 10 Armor Coverage 150 Evasion (%) 55 Recoil Reduction 2 Item Schematics ----------------- None Robot Schematics ------------------ None Fabricated ------------ Nothing Repaired ---------- Nothing Alien Tech Used ----------------- None Achievements -------------- None Challenges ------------ None Game ------ Seed SmartbombDiametricMapper Manual? 0 Play Time 00:11:17 Cumulative 99.5 hours Start 2025.05.24 @ 13:34:25 End 2025.05.24 @ 13:46:29 Sessions 1 Manual Loads 0 Difficulty Rogue Special Mode None Game No. 264 Rogue 262 Adventurer 2 Explorer 0 Win Type - Total 1 Types 1/0/0/0/0/0/0/0/0/0 Lore% 74 Gallery% 59 Achievement% 50 Wizard Run 0 Options --------- Layout 2 ASCII 0 Keyboard 0 Movement Arrows Keybinds 0 Fullscreen 2 Font 24/Smallcaps Map View 50x44 Zoom Use 0% Tactical HUD 1 Map Filters NONE Filters NONE Steam 1 RUN: 2ffd1c42-dff8-4ea9-9d7b-e5ca5506c411